Cogmind - Beta 14 @@@ ROGUE MODE // 2024.12.26 @ 13:41:27 Player: spoonum Result: Destroyed by 4C-XF9(R) with Subdweller Beam Cannon Performance ------------- Evolutions (0) 0 Regions Visited (2) 400 Robots Destroyed (28) 140 Value Destroyed (820) 820 Prototype IDs (0) 0 Alien Tech Used (0) 0 Bonus (0) 0 TOTAL SCORE: 1360 Bonus ------- None Cogmind --------- Core Integrity 0/250 Matter 270/300 Energy 200/200 System Corruption 0% Temperature Cool (9) Movement Treading (160) Location -10/Subcaves Parts ------- > --- POWER (1) -------- Subdweller Power Source > --- PROPULSION (2) --- Light Treads Light Treads > --- UTILITY (2) ------ Medium Storage Unit Subdweller Optics > --- WEAPON (2) ------- Subdweller Laser Makeshift Shrapnel Gun > --- INVENTORY (10) --- Subdweller Power Source Subdweller Monowheel Heat Sink Sensor Array Hacking Suite Heavy Riot Gun Makeshift Spear Scrap Shield Fragment (43) Peak State ------------ > --- POWER ------------ Subdweller Power Source > --- PROPULSION ------- Light Treads Spiked Treads > --- UTILITY ---------- Medium Storage Unit Subdweller Optics > --- WEAPON ----------- Subdweller Laser Makeshift Shrapnel Gun > --- INVENTORY -------- Subdweller Power Source Light Treads Subdweller Monowheel Heat Sink Sensor Array Hacking Suite Heavy Riot Gun Makeshift Spear Scrap Shield Fragment [Rating: 16] Favorites ----------- Power Ion Engine Engine Ion Engine Propulsion Light Treads Treads Light Treads Leg Aluminum Leg Utility Medium Storage Unit Device Subdweller Optics Storage Medium Storage Unit Weapon Assault Rifle Energy Gun Subdweller Laser Energy Cannon Subdweller Beam Cannon Ballistic Gun Assault Rifle Launcher Subdweller Shrapnel Launcher Build | -11 -10 -10 ------- Run | Yrd Mat Sub Slots Evolved . | . . . Power . | . . . Propulsion . | . . . Utility . | . . . Weapon . | . . . Parts Attached 30 | . 9 21 Power 7 | . 2 5 Engine 7 | . 2 5 Core . | . . . Reactor . | . . . Propulsion 6 | . 2 4 Treads 4 | . . 4 Leg 2 | . 2 . Wheel . | . . . Hover . | . . . Flight . | . . . Utility 5 | . 3 2 Device 1 | . . 1 Storage 4 | . 3 1 Processor . | . . . Hackware . | . . . Protection . | . . . Artifact . | . . . Weapon 12 | . 2 10 Energy Gun 5 | . . 5 Energy Cannon 1 | . . 1 Ballistic Gun 5 | . 2 3 Ballistic Cannon . | . . . Launcher 1 | . . 1 Special Weapon . | . . . Impact Weapon . | . . . Slashing Weapon . | . . . Piercing Weapon . | . . . Special Melee Weapon . | . . . Unidentified Prototypes . | . . . Parts Lost 7 | . 2 5 Power 1 | . . 1 Propulsion 2 | . 1 1 Utility 1 | . . 1 Weapon 3 | . 1 2 Highest Loss Streak 2 | . 1 2 To Critical Strikes . | . . . Average Slot Usage (%) 98 | . 98 98 Engine 14 | . 14 14 Treads 17 | . . 27 Leg 10 | . 28 . Device 2 | . . 3 Storage 24 | . 26 23 Energy Gun 6 | . . 10 Energy Cannon 1 | . . 3 Ballistic Gun 19 | . 27 14 Peak Build Rating 16 | 6 8 16 Average Rating 10 | 6 6 11 On Entrance 6 | 6 6 8 Naked Turns . | . . . Heaviest Build 31 | 14 23 31 Greatest Support 40 | 20 20 40 Greatest Overweight (x) 1 | . 1 . Average Overweight (x) . | . . . Largest Inventory Capacity 10 | 8 10 10 Average Capacity 9 | 8 9 10 Most Carried 10 | 6 10 10 Average Carried 8 | 5 6 9 Final Capacity 10 | 8 10 10 Final Carried 10 | 4 10 8 Class Distribution -------------------- 100% | Mutant Dominant Class ---------------- Mutant | -10/Materials Mutant | -10/Subcaves Resources | -11 -10 -10 ----------- Run | Yrd Mat Sub Matter Collected 1051 | 212 371 468 Remotely . | . . . Salvage Created 974 | 85 414 475 Parts 59 | 3 29 27 Haulers Intercepted . | . . . Recyclers Shooed . | . . . Parts Field Recycled . | . . . Retrieved Matter . | . . . Parts Self-Destructed 1 | . . 1 Prevented . | . . . Kills | -11 -10 -10 ------- Run | Yrd Mat Sub Combat Hostiles Destroyed 25 | . 13 12 Guns 18 | . 13 5 Cannons 5 | . . 5 Classes Destroyed 6 | 2 3 1 Tunneler 1 | 1 . . Recycler 1 | 1 . . Operator 1 | . 1 . Swarmer 6 | . 6 . Grunt 7 | . 7 . Subdweller 12 | . . 12 Best Kill Streak 4 | 2 4 3 Combat Bots Only 4 | . 4 3 Max Kills in Single Turn 2 | 1 2 2 Gunslinging 1 | . 1 1 Exploded . | . . . Melee . | . . . Uniques/NPCs Destroyed . | . . . Combat | -11 -10 -10 -------- Run | Yrd Mat Sub Hostile Shots Fired 155 | . 94 61 Missed 46 | . 26 20 Damage Taken 1751 | . 746 1005 Core 268 | . 99 169 Absorbed by Shields . | . . . Core Remaining (%) 100 | 100 . . Volleys Fired 89 | 2 47 40 Largest 2 | 2 2 2 Hottest 140 | 40 40 140 Shots Fired 178 | 4 94 80 Gun 152 | 4 94 54 Cannon 24 | . . 24 Launcher 2 | . . 2 Special . | . . . Kinetic 129 | 4 94 31 Thermal 49 | . . 49 Explosive . | . . . Electromagnetic . | . . . Robot Hit Streak 38 | 3 27 38 Robot Miss Streak 6 | . 6 1 Penetration Max . | . . . Secondary Targets 3 | . 2 1 Max Gunslinging Chain 1 | . 1 1 Shots Hit Robots 118 | 3 62 53 Core Hits 48 | 3 25 20 Critical Kills 2 | . . 2 Critical Parts Destroyed . | . . . Critical Strikes 2 | . . 2 Meltdown 2 | . . 2 Melee Attacks . | . . . Impact . | . . . Slashing . | . . . Piercing . | . . . Sneak Attacks . | . . . Combat Hostiles . | . . . Follow-up Attacks . | . . . Damage Inflicted 2192 | 40 775 1377 Guns 1471 | 40 762 669 Cannons 469 | . . 469 Explosions 239 | . . 239 Melee . | . . . Ramming 13 | . 13 . Kinetic 1368 | 40 762 566 Thermal 811 | . . 811 Explosive . | . . . Electromagnetic . | . . . Impact . | . . . Slashing . | . . . Piercing . | . . . Highest Corruption . | . . . Average Corruption . | . . . Corruption Purged . | . . . Corruption Blocked . | . . . Overload Shots . | . . . Overflow Damage 18 | . . 18 Projectiles . | . . . Explosions 18 | . . 18 Melee . | . . . Knockbacks . | . . . Impact . | . . . Kinetic . | . . . Secondary . | . . . Self-Inflicted Damage 94 | . . 94 Shots 2 | . . 2 Rammed . | . . . Targets Rammed 4 | . 4 . Kicked 4 | . 4 . Crushed . | . . . Highest Temperature 117 | . 30 117 Average Temperature 30 | . 13 41 Received Heat Transfer 549 | . 360 189 Siege Activations . | . . . Robots Corrupted . | . . . Combat Hostiles . | . . . Parts Fried . | . . . Impact Corruptions . | . . . Robots Melted 2 | . . 2 Combat Hostiles 2 | . . 2 Parts Melted 5 | . . 5 Heat Transferred 1054 | . . 1054 Parts Sabotaged . | . . . Parts Stolen . | . . . Parts Stripped . | . . . Power Chain Reactions . | . . . Alert | -11 -10 -10 ------- Run | Yrd Mat Sub Peak Influence 308 | 10 308 . Initial 6 | . 6 . Average 120 | 7 125 . Maximum Alert Level 1 | . 1 . Low Security (%) 85 | 100 84 . Level 1 14 | . 15 . Level 2 . | . . . Level 3 . | . . . Level 4 . | . . . Level 5 . | . . . High Security . | . . . Max Security . | . . . Squads Dispatched 3 | . 3 . Investigation 1 | . 1 . Extermination . | . . . Reinforcement 2 | . 2 . Assault . | . . . Garrison . | . . . Intercept . | . . . Searches Triggered . | . . . Construction Impeded . | . . . Haulers Reinforced . | . . . Active Scanning Responses . | . . . Cargo Convoy Interrupts . | . . . Stealth | -11 -10 -10 --------- Run | Yrd Mat Sub Distress Signals 2 | . 2 . Communications Jammed . | . . . Distress Signals . | . . . Times Spotted 39 | . 24 15 Peak Tracking Total 6 | . 6 3 Tactical Retreats 3 | . 3 . Traps | -11 -10 -10 ------- Run | Yrd Mat Sub Traps Triggered . | . . . Indirectly . | . . . Trap Hack Attempts . | . . . Triggered . | . . . Disarmed 3 | . 3 . Reprogrammed . | . . . Reused . | . . . Traps Extracted . | . . . Installed . | . . . Triggered . | . . . Machines | -11 -10 -10 ---------- Run | Yrd Mat Sub Machines Disabled . | . . . Max in Single Turn . | . . . Machines Repaired . | . . . Machines Dismantled . | . . . Machines Sabotaged . | . . . Overloaded Fab Kills . | . . . Hacking | -11 -10 -10 --------- Run | Yrd Mat Sub Machines Accessed 3 | . 3 . Terminals 2 | . 2 . Fabricators . | . . . Repair Stations . | . . . Recycling Units 1 | . 1 . Scanalyzers . | . . . Garrison Access . | . . . Total Hacks 8 | . 8 . Successful 7 | . 7 . Failed 1 | . 1 . Catastrophic . | . . . Database Lockouts . | . . . Manual 3 | . 3 . Terminals 4 | . 4 . Fabricators . | . . . Repair Stations . | . . . Recycling Units 4 | . 4 . Scanalyzers . | . . . Garrison Access . | . . . Terminal Hacks 2 | . 2 . Disarm Traps 1 | . 1 . Registered Components 1 | . 1 . Fabricator Hacks . | . . . Repair Station Hacks . | . . . Recycling Unit Hacks 4 | . 4 . Report Inventory 1 | . 1 . Retrieve Matter 3 | . 3 . Scanalyzer . | . . . Garrison Access Hacks . | . . . Unauthorized Hacks 1 | . 1 . Terminals 1 | . 1 . Botnet 1 | . 1 . Fabricators . | . . . Repair Stations . | . . . Recycling Units . | . . . Scanalyzers . | . . . Garrison Access . | . . . Data Cores Recovered . | . . . Used . | . . . Hacking Detections 3 | . 3 . Full Trace Events 1 | . 1 . Feedback Events . | . . . Feedback Blocked . | . . . Robot Schematics Acquired . | . . . Robots Built . | . . . Authchips . | . . . Time . | . . . Total Robot Build Rating . | . . . Part Schematics Acquired . | . . . Parts Built . | . . . Authchips . | . . . Time . | . . . Total Part Build Rating . | . . . Parts Repaired . | . . . Time . | . . . Parts Recycled . | . . . Recycled Matter . | . . . Retrieved Matter . | . . . Retrieved Components . | . . . Parts Scanalyzed . | . . . Part Schematics Acquired . | . . . Parts Damaged . | . . . Bothacking | -11 -10 -10 ------------ Run | Yrd Mat Sub Used RIF Installer . | . . . Robots Hacked . | . . . Non-combat . | . . . Combat . | . . . Robot Hacks Applied . | . . . Relay Couplers Released . | . . . Fabnet Peak Effective % . | . . . Robots Rewired . | . . . Allies Hacked . | . . . Hacks Repelled . | . . . Allies | -11 -10 -10 -------- Run | Yrd Mat Sub Total Allies . | . . . Largest Group . | . . . Highest-Rated Group . | . . . Highest-Rated Ally . | . . . Total Orders . | . . . Ally Attacks . | . . . Total Damage . | . . . Kills . | . . . Allies Corrupted . | . . . Allies Melted . | . . . Intel | -11 -10 -10 ------- Run | Yrd Mat Sub Robot Analysis Total . | . . . Derelict Logs Recovered 1 | . . 1 Drone Launches . | . . . Drone Recoveries . | . . . Exploration | -11 -10 -10 ------------- Run | Yrd Mat Sub Turns Passed 2738 | 41 975 1722 Spaces Moved 1432 | 27 457 948 Core . | . . . Treads 948 | . . 948 Legs 484 | 27 457 . Wheels . | . . . Hover . | . . . Flight . | . . . Fastest Speed 120 | 120 120 160 Average Speed 160 | 120 162 160 Slowest Speed 190 | 120 190 160 Overloaded Moves . | . . . Propulsion Burnouts . | . . . Robots Hopped . | . . . Cave-ins Triggered . | . . . Exploration Rate (%) 39 | 2 54 63 Regions Visited 2 Branch Regions 1 Pre-discovered Areas . | . . . Known Exits Taken . | . . . Unknown Exits Taken 2 | 1 1 . Scrap Searched 8 | . . 8 Spaces Dug . | . . . Terrain Destroyed 26 | . . 26 Melee . | . . . Projectile . | . . . AOE 26 | . . 26 Terrain Rammed . | . . . Walls Destroyed . | . . . Machines Disabled . | . . . Actions | -11 -10 -10 --------- Run | Yrd Mat Sub Total 1705 | 32 595 1078 Wait 103 | 2 67 34 Move 1430 | 26 456 948 Hop . | . . . Pick Up 23 | . 7 16 Fast Attach 5 | . 2 3 Attach 8 | . 1 7 Detach 2 | . . 2 Swap 17 | . 6 11 Drop 24 | 2 5 17 Fire 89 | 2 47 40 Melee . | . . . Ram . | . . . Kick 4 | . 4 . Crush . | . . . Escape Stasis . | . . . Rewire . | . . . Trap . | . . . Miscellaneous . | . . . Route ------- -11/Scrapyard -10/Materials (discovered 3 exits: [*Mat] / [*Min] / [*Sub]) -10/Subcaves (discovered 2 exits: [*Mat] / Rec) History --------- Turn | Location | Event 1 | -11/Scrapyard | Discovered new exit (range 3) 42 | -11/Scrapyard | Entered Materials 104 | -10/Materials | Discovered new exit (range 9) 316 | -10/Materials | Build established: Mutant 723 | -10/Materials | Discovered new exit (range 9) 921 | -10/Materials | Discovered new exit (range 8) 1017 | -10/Materials | Entered Subcaves 1048 | -10/Subcaves | A swath of the cavern ceiling suddenly collapsed 1411 | -10/Subcaves | Shifting Twisted Machinery released Hvy. Riot Gun 1417 | -10/Subcaves | Shifting Twisted Machinery released Sub. Beam Cannon 1681 | -10/Subcaves | Discovered new exit (range 2) 1716 | -10/Subcaves | Core integrity fell below 50% 1796 | -10/Subcaves | Identified exit to Recycling 2199 | -10/Subcaves | Core integrity fell below 20% 2453 | -10/Subcaves | A swath of the cavern ceiling suddenly collapsed 2739 | -10/Subcaves | Destroyed by 4C-XF9(R) with Subdweller Beam Cannon Last Messages --------------- 02305_ Acquired Lgt. Ion Engine. 02308_ Acquired 2 matter. 02339_ Sub. Power Source shoots sparks and powers down. 02340_ Dropped Broken Sub. Power Source. 02342_ Subatomizers dissect the Broken Sub. Power Source. A swath of the cavern ceiling suddenly collapses. 02524_ AY-7XV(R) destroyed. 02663_ Lgt. Ion Engine destroyed. 02670_ 1W-G9O(u) deconstructs Twisted Machinery. 02684_ C5-N0I(R) destroyed. 02684_ Switching to secondary target: TY-QTN(R). 02684_ TY-QTN(R) destroyed. 0O-DUW(R) emerges from concealment. 02690_ Acquired 38 matter. 02693_ 1W-G9O(u) deconstructs Twisted Machinery. 02695_ Acquired Sub. Power Source. 02701_ 1W-G9O(u) deconstructs Twisted Machinery. 02714_ 4C-XF9(R) affixes Scrap Shield Fragment to Scrap Shield. 02719_ 1W-G9O(u) builds Twisted Machinery. 02725_ Spk. Treads destroyed. Map ----- +----------------------------------------------------+ | ??# #?########?## ##?????????????????????????? | | ??#### #???????????####??????????????????????????? | | ?????##??????????????????????????????????????????? | | ?????????????????????????????????????????????????? | | ?????????????????????????????????????????????????? | | ?????????????????????????????????????????????????? | | ?????????????????????????????????????????????????? | | ?????????????????????????????????????????????????? | | ?????????????????????????????????????????????????? | | ?????????????????????????????????????????????????? | | ?????????????????????????????????????????????????? | | ?????????????????????????????????????????????????? | | ???????????????????????????##????????????????????? | | ??????????????????????????## #???????????????????? | | ??????????????????????????# ##????????????????#? | | ??????????????????????????? ??????????????? ## | | ???????????????????????????# " ?????????????? # | | ???#####????????????######## "" ????????????? | | ??## ##???????????# # " ???????##### | | ### """### #????#### """ ???#### | | """"" ??????? "" ??## | | """ #???????????# ##?# """ ### % | | " #????????????# ##??# " # | | #### ##???????????# #???# " ! ! ## | | ##?# #????????#### ##??#" [%! ## #???????? | | #### ##????????# @###### !%[ ##?#???????? | | "### ##?????#### # ## " ##????????? | | "### #??#### ###??????? | | #?#"" "#?##"" " R #??????? | | ### ##?# " ##; # ## #??????? | | ## #?## " " """ #######;####?# ##??????? | | ###??### """ ##""###?????###?????##???????? | | #?????## ## #####????????????????????????? | | #??????##?#" #????????????????????????????? | | # #??????##" ##?###???????????????????????? | | ### #??????#" ## #???????????????????????? | | ??## #??????# "" #???????????????????????? | | ???## #??????## "" ##???????????????????????? | | ????## #??????# ###????????????????????????? | | ?????? #?????## ##?????????????????????????? | | ?????? ##????### #?????????????????????????? | | #?????####????## #?????????????????????????? | | ###???###???## #?????????????????????????? | | #?## #??# #?????????????????????????? | | ## ### ####### #?????????????????????????? | | ### # ## ##???# ##???####????#######??????? | | ## ### ##??## #### # ##" " ???????? | | ## ##?## " ???????? | | ### " "& ?????????? | | ## # & ?????? | +----------------------------------------------------+ Best States ------------- Heat Dissipation 25 Energy Generation 15 Energy Capacity 400 Matter Stores 500 Matter Capacity 500 Sight Range 21 Terrain Scan Density 10 Evasion (%) 55 Recoil Reduction 2 Item Schematics ----------------- None Robot Schematics ------------------ None Fabricated ------------ Nothing Alien Tech Used ----------------- None Achievements -------------- True Hacker Challenges ------------ None Game ------ Seed SpectralLightpackRailgun Manual? 0 Play Time 00:28:17 Cumulative 44.7 hours Start 2024.12.26 @ 12:41:14 End 2024.12.26 @ 13:41:27 Sessions 1 Manual Loads 0 Difficulty Rogue Special Mode None Game No. 45 Rogue 45 Adventurer 0 Explorer 0 Win Type - Total 0 Types 0/0/0/0/0/0/0/0/0 Lore% 14 Gallery% 32 Achievement% 25 Wizard Run 0 Options --------- Layout 0 ASCII 0 Keyboard 0 Movement Mouse Keybinds 0 Fullscreen 1 Font 12/Terminus Map View 38x28 Zoom Use 91% Tactical HUD 1 Map Filters NONE Filters NONE Steam SD RUN: 9cc49ecc-80b3-45d1-9376-964ecfcce3c6